[Event "FIDE World Rapid Chess Championship 2021"]
[White "Erigaisi, Arjun"]
[Black "Korobov, Anton"]
[WhiteFideId "35009192"]
[BlackFideId "14105730"]
[WhiteElo "2397"]
[BlackElo "2689"]
[Result "0-1"]
[Round "04"]
[TimeControl "900+10"]
[Date "2021.12.26"]
[WhiteClock "0:00:17"]
[BlackClock "0:02:18"]

1. c4 {[%clk 0:15:34]}  e6 {[%clk 0:15:25]} 2. Nc3 {[%clk 0:15:34]}  d5 {[%clk 0:15:25]} 3. d4 {[%clk 0:15:34]}  c6 {[%clk 0:15:25]} 4. e3 {[%clk 0:15:34]}  Nd7 {[%clk 0:15:33]} 5. Nf3 {[%clk 0:15:34]}  f5 {[%clk 0:15:33]} 6. Qc2 {[%clk 0:15:34]}  Nh6 {[%clk 0:15:33]} 7. Bd3 {[%clk 0:15:34]}  Bd6 {[%clk 0:15:33]} 8. c5 {[%clk 0:15:34]}  Bc7 {[%clk 0:15:33]} 9. b4 {[%clk 0:15:34]}  O-O {[%clk 0:15:29]} 10. Bb2 {[%clk 0:14:46]}  Nf7 {[%clk 0:15:29]} 11. b5 {[%clk 0:14:46]}  e5 {[%clk 0:15:29]} 12. Bxf5 {[%clk 0:13:44]}  e4 {[%clk 0:14:26]} 13. Nd2 {[%clk 0:13:44]}  Nxc5 {[%clk 0:14:26]} 14. dxc5 {[%clk 0:12:51]}  Bxf5 {[%clk 0:13:12]} 15. f4 {[%clk 0:12:51]}  d4 {[%clk 0:13:19]} 16. exd4 {[%clk 0:10:31]}  Bxf4 {[%clk 0:13:19]} 17. O-O-O {[%clk 0:10:31]}  Ng5 {[%clk 0:08:08]} 18. Qb3+ {[%clk 0:09:56]}  Be6 {[%clk 0:07:17]} 19. d5 {[%clk 0:09:56]}  cxd5 {[%clk 0:07:17]} 20. Ne2 {[%clk 0:09:56]}  d4 {[%clk 0:07:17]} 21. Qb4 {[%clk 0:09:56]}  d3 {[%clk 0:07:17]} 22. Nxf4 {[%clk 0:09:56]}  Rxf4 {[%clk 0:07:17]} 23. h4 {[%clk 0:09:56]}  Qc7 {[%clk 0:07:17]} 24. Qd4 {[%clk 0:09:07]}  Rd8 {[%clk 0:05:11]} 25. Qe3 {[%clk 0:06:08]}  Rf5 {[%clk 0:03:30]} 26. Kb1 {[%clk 0:06:16]}  Qxc5 {[%clk 0:03:30]} 27. Qxc5 {[%clk 0:06:16]}  Rxc5 {[%clk 0:03:30]} 28. hxg5 {[%clk 0:06:16]}  e3 {[%clk 0:03:30]} 29. Rhe1 {[%clk 0:05:38]}  Bg4 {[%clk 0:01:31]} 30. Nf3 {[%clk 0:05:38]}  e2 {[%clk 0:01:36]} 31. Rd2 {[%clk 0:05:45]}  Bxf3 {[%clk 0:01:36]} 32. gxf3 {[%clk 0:05:45]}  Rxg5 {[%clk 0:01:36]} 33. a4 {[%clk 0:05:45]}  Rdd5 {[%clk 0:01:36]} 34. Bc3 {[%clk 0:05:56]}  Rgf5 {[%clk 0:01:02]} 35. Kc1 {[%clk 0:05:56]}  Rxf3 {[%clk 0:01:02]} 36. Rb2 {[%clk 0:05:56]}  Rf1 {[%clk 0:01:02]} 37. Kd2 {[%clk 0:05:56]}  Rxe1 {[%clk 0:01:02]} 38. Kxe1 {[%clk 0:05:56]}  Rf5 {[%clk 0:01:02]} 39. Kd2 {[%clk 0:05:56]}  Rf1 {[%clk 0:01:02]} 40. Kxd3 {[%clk 0:05:56]}  Rf3+ {[%clk 0:01:02]} 41. Kxe2 {[%clk 0:05:56]}  Rxc3 {[%clk 0:01:02]} 42. Rd2 {[%clk 0:03:46]}  Rc7 {[%clk 0:01:39]} 43. a5 {[%clk 0:03:46]}  Kf7 {[%clk 0:01:47]} 44. Rd8 {[%clk 0:03:54]}  Ke6 {[%clk 0:01:47]} 45. Ra8 {[%clk 0:03:54]}  Rc5 {[%clk 0:01:47]} 46. Rxa7 {[%clk 0:03:54]}  Rxb5 {[%clk 0:01:47]} 47. a6 {[%clk 0:03:54]}  bxa6 {[%clk 0:01:47]} 48. Rxg7 {[%clk 0:03:54]}  Rh5 {[%clk 0:01:47]} 49. Ra7 {[%clk 0:03:54]}  a5 {[%clk 0:01:47]} 50. Ra6+ {[%clk 0:03:46]}  Kd7 {[%clk 0:01:53]} 51. Kd3 {[%clk 0:03:46]}  Kc7 {[%clk 0:01:53]} 52. Kc4 {[%clk 0:03:46]}  a4 {[%clk 0:01:53]} 53. Kb4 {[%clk 0:03:46]}  Rh4+ {[%clk 0:01:53]} 54. Kc5 {[%clk 0:03:46]}  h5 {[%clk 0:01:53]} 55. Rh6 {[%clk 0:00:38]}  a3 {[%clk 0:02:15]} 56. Rh7+ {[%clk 0:00:38]}  Kd8 {[%clk 0:02:15]} 57. Ra7 {[%clk 0:00:38]}  Rh3 {[%clk 0:02:15]} 58. Kd6 {[%clk 0:00:38]}  Rd3+ {[%clk 0:02:15]} 59. Ke5 {[%clk 0:00:38]}  h4 {[%clk 0:02:15]} 60. Ke4 {[%clk 0:00:38]}  Rb3 {[%clk 0:02:15]} 61. Rh7 {[%clk 0:00:17]}  h3 {[%clk 0:02:18]} 62. Kd4 {[%clk 0:00:17]} 0-1


[Site "http://www.Chess.com"]

[Event "FIDE World Rapid Chess Championship 2021"]
[White "Sarana, Alexey"]
[Black "Cheparinov, Ivan"]
[WhiteFideId "24133795"]
[BlackFideId "2905540"]
[WhiteElo "2680"]
[BlackElo "2621"]
[Result "1/2-1/2"]
[Round "04"]
[TimeControl "900+10"]
[Date "2021.12.26"]
[WhiteClock "0:01:29"]
[BlackClock "0:00:46"]

1. d4 {[%clk 0:15:35]}  Nf6 {[%clk 0:15:33]} 2. c4 {[%clk 0:15:35]}  e6 {[%clk 0:15:33]} 3. Nc3 {[%clk 0:15:35]}  Bb4 {[%clk 0:15:33]} 4. e3 {[%clk 0:15:35]}  O-O {[%clk 0:15:31]} 5. Bd3 {[%clk 0:15:35]}  d5 {[%clk 0:15:31]} 6. a3 {[%clk 0:15:35]}  Bxc3+ {[%clk 0:15:31]} 7. bxc3 {[%clk 0:15:35]}  c6 {[%clk 0:15:31]} 8. a4 {[%clk 0:15:35]}  b6 {[%clk 0:15:31]} 9. Ba3 {[%clk 0:15:35]}  Re8 {[%clk 0:15:04]} 10. Nf3 {[%clk 0:16:31]}  Ba6 {[%clk 0:15:04]} 11. cxd5 {[%clk 0:16:31]}  Bxd3 {[%clk 0:15:04]} 12. Qxd3 {[%clk 0:16:31]}  cxd5 {[%clk 0:15:04]} 13. c4 {[%clk 0:16:31]}  Nc6 {[%clk 0:15:04]} 14. O-O {[%clk 0:16:31]}  dxc4 {[%clk 0:15:04]} 15. Qxc4 {[%clk 0:16:31]}  Rc8 {[%clk 0:15:04]} 16. Qa6 {[%clk 0:16:38]}  Qd7 {[%clk 0:13:26]} 17. Rac1 {[%clk 0:15:46]}  h6 {[%clk 0:13:25]} 18. h3 {[%clk 0:13:34]}  Rc7 {[%clk 0:13:26]} 19. Rc4 {[%clk 0:12:16]}  Nb8 {[%clk 0:12:03]} 20. Rxc7 {[%clk 0:12:16]}  Qxc7 {[%clk 0:12:03]} 21. Qb5 {[%clk 0:12:16]}  Rc8 {[%clk 0:12:03]} 22. Ne5 {[%clk 0:12:31]}  Qb7 {[%clk 0:11:16]} 23. a5 {[%clk 0:12:31]}  Qd5 {[%clk 0:10:23]} 24. Qxd5 {[%clk 0:09:54]}  Nxd5 {[%clk 0:10:23]} 25. axb6 {[%clk 0:09:54]}  axb6 {[%clk 0:10:23]} 26. Bd6 {[%clk 0:09:54]}  Nc6 {[%clk 0:10:23]} 27. Rc1 {[%clk 0:09:08]}  Na7 {[%clk 0:09:17]} 28. Rb1 {[%clk 0:09:08]}  Nc6 {[%clk 0:09:17]} 29. Nd3 {[%clk 0:06:31]}  Na5 {[%clk 0:09:10]} 30. Bb4 {[%clk 0:06:29]}  Nxb4 {[%clk 0:09:10]} 31. Rxb4 {[%clk 0:06:29]}  Nc4 {[%clk 0:09:10]} 32. Kf1 {[%clk 0:06:29]}  Rc6 {[%clk 0:07:58]} 33. Ke2 {[%clk 0:06:16]}  f6 {[%clk 0:07:51]} 34. Ra4 {[%clk 0:06:16]}  Na5 {[%clk 0:05:55]} 35. Rb4 {[%clk 0:05:50]}  Kf7 {[%clk 0:05:50]} 36. g4 {[%clk 0:05:48]}  Rc2+ {[%clk 0:05:50]} 37. Kd1 {[%clk 0:05:48]}  Rc6 {[%clk 0:05:50]} 38. h4 {[%clk 0:05:48]}  Ke7 {[%clk 0:05:50]} 39. Rb5 {[%clk 0:05:22]}  Nc4 {[%clk 0:05:30]} 40. h5 {[%clk 0:05:22]}  Nd6 {[%clk 0:05:30]} 41. Rb2 {[%clk 0:05:22]}  Ne4 {[%clk 0:05:30]} 42. f3 {[%clk 0:05:22]}  Nd6 {[%clk 0:05:30]} 43. Ra2 {[%clk 0:05:22]}  Rc7 {[%clk 0:04:08]} 44. Ra8 {[%clk 0:04:33]}  Nc4 {[%clk 0:04:08]} 45. Ke2 {[%clk 0:04:33]}  e5 {[%clk 0:04:08]} 46. d5 {[%clk 0:04:33]}  Nd6 {[%clk 0:04:08]} 47. e4 {[%clk 0:04:33]}  Nb5 {[%clk 0:02:46]} 48. Nb4 {[%clk 0:04:34]}  Nd4+ {[%clk 0:02:46]} 49. Kd3 {[%clk 0:04:34]}  Rc1 {[%clk 0:02:22]} 50. Ra7+ {[%clk 0:02:38]}  Kd6 {[%clk 0:02:29]} 51. Rxg7 {[%clk 0:02:38]}  Rf1 {[%clk 0:02:29]} 52. g5 {[%clk 0:00:51]}  Rxf3+ {[%clk 0:01:57]} 53. Kd2 {[%clk 0:00:51]}  hxg5 {[%clk 0:01:57]} 54. h6 {[%clk 0:01:23]}  Rf2+ {[%clk 0:01:47]} 55. Ke3 {[%clk 0:01:23]}  Re2+ {[%clk 0:01:47]} 56. Kd3 {[%clk 0:01:23]}  Rh2 {[%clk 0:01:47]} 57. h7 {[%clk 0:01:23]}  Rh3+ {[%clk 0:01:47]} 58. Kd2 {[%clk 0:01:23]}  g4 {[%clk 0:01:47]} 59. Na6 {[%clk 0:01:23]}  Nf3+ {[%clk 0:01:47]} 60. Ke2 {[%clk 0:00:34]}  Ng5 {[%clk 0:01:56]} 61. Nc7 {[%clk 0:00:34]}  Rxh7 {[%clk 0:01:56]} 62. Ne8+ {[%clk 0:00:34]}  Kc5 {[%clk 0:01:56]} 63. Rg6 {[%clk 0:00:34]}  Nxe4 {[%clk 0:01:56]} 64. d6 {[%clk 0:00:34]}  Nxd6 {[%clk 0:01:56]} 65. Nxf6 {[%clk 0:00:34]}  Rh2+ {[%clk 0:01:56]} 66. Ke3 {[%clk 0:00:34]}  Nc4+ {[%clk 0:01:56]} 67. Ke4 {[%clk 0:00:34]}  Re2+ {[%clk 0:01:56]} 68. Kd3 {[%clk 0:00:34]}  Re3+ {[%clk 0:01:56]} 69. Kc2 {[%clk 0:00:34]}  g3 {[%clk 0:01:56]} 70. Rg4 {[%clk 0:00:34]}  b5 {[%clk 0:01:56]} 71. Ne4+ {[%clk 0:00:34]}  Kb4 {[%clk 0:02:13]} 72. Nxg3 {[%clk 0:01:09]}  Rc3+ {[%clk 0:01:51]} 73. Kd1 {[%clk 0:01:16]}  Kb3 {[%clk 0:01:51]} 74. Rg8 {[%clk 0:01:16]}  Rd3+ {[%clk 0:01:51]} 75. Ke2 {[%clk 0:01:16]}  Re3+ {[%clk 0:01:51]} 76. Kf2 {[%clk 0:01:16]}  b4 {[%clk 0:01:51]} 77. Rc8 {[%clk 0:01:16]}  Rc3 {[%clk 0:01:51]} 78. Ne4 {[%clk 0:01:16]}  Rc2+ {[%clk 0:01:51]} 79. Ke1 {[%clk 0:01:16]}  Ne3 {[%clk 0:01:51]} 80. Nc5+ {[%clk 0:01:16]}  Ka2 {[%clk 0:01:50]} 81. Ra8+ {[%clk 0:01:54]}  Kb1 {[%clk 0:01:16]} 82. Nd3 {[%clk 0:01:54]}  b3 {[%clk 0:01:16]} 83. Nxe5 {[%clk 0:01:54]}  Ng2+ {[%clk 0:01:16]} 84. Kd1 {[%clk 0:01:54]}  Ne3+ {[%clk 0:01:16]} 85. Ke1 {[%clk 0:01:54]}  Rc3 {[%clk 0:01:16]} 86. Kd2 {[%clk 0:01:54]}  Nd5 {[%clk 0:01:16]} 87. Rb8 {[%clk 0:01:54]}  Rh3 {[%clk 0:00:46]} 88. Nc4 {[%clk 0:01:29]}  Rh2+ {[%clk 0:00:46]} 89. Kd3 {[%clk 0:01:29]}  Rh3+ {[%clk 0:00:46]} 90. Kd4 {[%clk 0:01:29]} 1/2-1/2


[Site "http://www.Chess.com"]

[Event "FIDE World Rapid Chess Championship 2021"]
[White "Nakamura, Hikaru"]
[Black "Maghsoodloo, Parham"]
[WhiteFideId "2016192"]
[BlackFideId "12539929"]
[WhiteElo "2836"]
[BlackElo "2512"]
[Result "1-0"]
[Round "04"]
[TimeControl "900+10"]
[Date "2021.12.26"]
[WhiteClock "0:01:01"]
[BlackClock "0:00:22"]

1. d4 {[%clk 0:15:21]}  d5 {[%clk 0:15:17]} 2. c4 {[%clk 0:15:21]}  e6 {[%clk 0:15:17]} 3. Nc3 {[%clk 0:15:21]}  Bb4 {[%clk 0:15:17]} 4. cxd5 {[%clk 0:15:21]}  exd5 {[%clk 0:15:17]} 5. Bf4 {[%clk 0:15:21]}  c6 {[%clk 0:15:17]} 6. e3 {[%clk 0:15:21]}  Ne7 {[%clk 0:15:17]} 7. Bd3 {[%clk 0:15:21]}  Bf5 {[%clk 0:15:17]} 8. Ne2 {[%clk 0:15:21]}  O-O {[%clk 0:15:17]} 9. O-O {[%clk 0:15:21]}  Bd6 {[%clk 0:15:29]} 10. Bxd6 {[%clk 0:14:58]}  Qxd6 {[%clk 0:15:29]} 11. b4 {[%clk 0:14:58]}  a6 {[%clk 0:15:29]} 12. Na4 {[%clk 0:13:42]}  Nd7 {[%clk 0:15:08]} 13. Nc5 {[%clk 0:12:02]}  Bxd3 {[%clk 0:15:08]} 14. Qxd3 {[%clk 0:12:12]}  b5 {[%clk 0:10:51]} 15. a4 {[%clk 0:12:12]}  Nb6 {[%clk 0:10:56]} 16. Ra2 {[%clk 0:12:12]}  Rfb8 {[%clk 0:10:56]} 17. Nc3 {[%clk 0:11:14]}  Nc4 {[%clk 0:10:22]} 18. Rb1 {[%clk 0:11:14]}  Nc8 {[%clk 0:10:22]} 19. Qf5 {[%clk 0:09:06]}  N8b6 {[%clk 0:09:38]} 20. Rba1 {[%clk 0:08:02]}  Qd8 {[%clk 0:07:41]} 21. Qf4 {[%clk 0:08:06]}  h6 {[%clk 0:07:41]} 22. h4 {[%clk 0:07:48]}  Nd6 {[%clk 0:05:33]} 23. a5 {[%clk 0:07:48]}  Nbc4 {[%clk 0:04:44]} 24. Re2 {[%clk 0:06:28]}  Nb7 {[%clk 0:04:47]} 25. Nd3 {[%clk 0:06:26]}  Qd7 {[%clk 0:04:47]} 26. Rae1 {[%clk 0:06:26]}  Re8 {[%clk 0:04:47]} 27. f3 {[%clk 0:06:26]}  Re6 {[%clk 0:04:47]} 28. g4 {[%clk 0:06:01]}  Rae8 {[%clk 0:03:57]} 29. Nd1 {[%clk 0:06:01]}  Qe7 {[%clk 0:03:57]} 30. Qg3 {[%clk 0:06:01]}  g5 {[%clk 0:03:52]} 31. hxg5 {[%clk 0:04:40]}  hxg5 {[%clk 0:02:43]} 32. Qh3 {[%clk 0:04:40]}  Qf6 {[%clk 0:02:43]} 33. Rh2 {[%clk 0:04:40]}  Qg7 {[%clk 0:02:43]} 34. Kf2 {[%clk 0:04:40]}  Kf8 {[%clk 0:02:32]} 35. Qh8+ {[%clk 0:04:04]}  Qxh8 {[%clk 0:02:32]} 36. Rxh8+ {[%clk 0:04:04]}  Kg7 {[%clk 0:02:32]} 37. Rh5 {[%clk 0:04:04]}  Kf6 {[%clk 0:01:09]} 38. Reh1 {[%clk 0:02:41]}  Rg8 {[%clk 0:01:09]} 39. Rh8 {[%clk 0:02:41]}  Rxh8 {[%clk 0:00:22]} 40. Rxh8 {[%clk 0:01:43]}  Kg7 {[%clk 0:00:22]} 41. Ra8 {[%clk 0:01:44]}  Rh6 {[%clk 0:00:29]} 42. Kg2 {[%clk 0:01:44]}  Re6 {[%clk 0:00:29]} 43. Rxa6 {[%clk 0:01:44]}  Nxe3+ {[%clk 0:00:29]} 44. Nxe3 {[%clk 0:01:44]}  Rxe3 {[%clk 0:00:29]} 45. Ne5 {[%clk 0:01:44]}  Nd8 {[%clk 0:00:29]} 46. Rb6 {[%clk 0:01:44]}  Ra3 {[%clk 0:00:29]} 47. a6 {[%clk 0:01:44]}  Ra4 {[%clk 0:00:29]} 48. Kf1 {[%clk 0:01:08]}  f6 {[%clk 0:00:20]} 49. Nd7 {[%clk 0:01:01]}  Ne6 {[%clk 0:00:22]} 50. Rb7 {[%clk 0:01:01]}  Ra1+ {[%clk 0:00:22]} 51. Kf2 {[%clk 0:01:01]}  Kg6 {[%clk 0:00:22]} 52. a7 {[%clk 0:01:01]}  Ra2+ {[%clk 0:00:22]} 53. Ke1 {[%clk 0:01:01]}  Nxd4 {[%clk 0:00:22]} 54. Nf8+ {[%clk 0:01:01]} 1-0


[Site "http://www.Chess.com"]

[Event "FIDE World Rapid Chess Championship 2021"]
[White "Vachier-Lagrave, Maxime"]
[Black "Quparadze, Giga"]
[WhiteFideId "623539"]
[BlackFideId "13602250"]
[WhiteElo "2773"]
[BlackElo "2583"]
[Result "1-0"]
[Round "04"]
[TimeControl "900+10"]
[Date "2021.12.26"]
[WhiteClock "0:04:14"]
[BlackClock "0:03:51"]

1. e4 {[%clk 0:15:28]}  c5 {[%clk 0:15:29]} 2. Nf3 {[%clk 0:15:28]}  e6 {[%clk 0:15:29]} 3. c3 {[%clk 0:15:28]}  d5 {[%clk 0:15:29]} 4. exd5 {[%clk 0:15:28]}  Qxd5 {[%clk 0:15:29]} 5. Na3 {[%clk 0:15:28]}  Nf6 {[%clk 0:15:29]} 6. d4 {[%clk 0:15:28]}  Nc6 {[%clk 0:15:29]} 7. Be3 {[%clk 0:15:28]}  cxd4 {[%clk 0:15:29]} 8. Nb5 {[%clk 0:15:28]}  Qd7 {[%clk 0:15:29]} 9. Nbxd4 {[%clk 0:15:28]}  Be7 {[%clk 0:15:29]} 10. Bb5 {[%clk 0:14:59]}  Qc7 {[%clk 0:16:21]} 11. Nxc6 {[%clk 0:14:59]}  bxc6 {[%clk 0:16:21]} 12. Bd3 {[%clk 0:14:59]}  Nd5 {[%clk 0:16:21]} 13. Qe2 {[%clk 0:14:59]}  Nxe3 {[%clk 0:16:21]} 14. Qxe3 {[%clk 0:14:59]}  Rb8 {[%clk 0:16:19]} 15. O-O-O {[%clk 0:12:46]}  O-O {[%clk 0:16:19]} 16. Rd2 {[%clk 0:12:46]}  Qa5 {[%clk 0:16:19]} 17. Ne5 {[%clk 0:12:41]}  Qc7 {[%clk 0:15:06]} 18. Be4 {[%clk 0:11:18]}  Rb5 {[%clk 0:13:59]} 19. f4 {[%clk 0:11:18]}  Bf6 {[%clk 0:13:59]} 20. Nc4 {[%clk 0:11:18]}  e5 {[%clk 0:13:35]} 21. f5 {[%clk 0:08:52]}  Qe7 {[%clk 0:12:38]} 22. h4 {[%clk 0:08:05]}  h6 {[%clk 0:12:38]} 23. g3 {[%clk 0:08:05]}  Ba6 {[%clk 0:09:25]} 24. Nd6 {[%clk 0:08:20]}  Rb6 {[%clk 0:08:44]} 25. Bc2 {[%clk 0:08:20]}  c5 {[%clk 0:07:58]} 26. Rhd1 {[%clk 0:06:52]}  c4 {[%clk 0:07:49]} 27. Ne4 {[%clk 0:06:52]}  Bb5 {[%clk 0:07:49]} 28. Rd6 {[%clk 0:05:38]}  Rxd6 {[%clk 0:07:13]} 29. Rxd6 {[%clk 0:05:38]}  Rb8 {[%clk 0:07:13]} 30. Rxf6 {[%clk 0:05:38]}  gxf6 {[%clk 0:07:13]} 31. Qxh6 {[%clk 0:05:38]}  Rb6 {[%clk 0:07:13]} 32. g4 {[%clk 0:05:38]}  Ba6 {[%clk 0:07:04]} 33. g5 {[%clk 0:04:14]}  Qf8 {[%clk 0:03:51]} 34. Nxf6+ {[%clk 0:04:14]}  Rxf6 {[%clk 0:03:51]} 35. Qxf8+ {[%clk 0:04:14]}  Kxf8 {[%clk 0:03:51]} 36. gxf6 {[%clk 0:04:14]}  Bb7 {[%clk 0:03:51]} 37. Kd2 {[%clk 0:04:14]}  Kg8 {[%clk 0:03:51]} 38. Ke3 {[%clk 0:04:14]}  Bc6 {[%clk 0:03:51]} 39. Be4 {[%clk 0:04:14]}  Bd7 {[%clk 0:03:51]} 40. Bd5 {[%clk 0:04:14]}  Bxf5 {[%clk 0:03:51]} 41. Bxc4 {[%clk 0:04:14]}  Bg6 {[%clk 0:03:51]} 42. Bd3 {[%clk 0:04:14]}  Bh5 {[%clk 0:03:51]} 43. Bf5 {[%clk 0:04:14]} 1-0


[Site "http://www.Chess.com"]

[Event "FIDE World Rapid Chess Championship 2021"]
[White "Caruana, Fabiano"]
[Black "Halkias, Stelios"]
[WhiteFideId "2020009"]
[BlackFideId "4201809"]
[WhiteElo "2770"]
[BlackElo "2576"]
[Result "1-0"]
[Round "04"]
[TimeControl "900+10"]
[Date "2021.12.26"]
[WhiteClock "0:06:29"]
[BlackClock "0:01:12"]

1. e4 {[%clk 0:15:44]}  e5 {[%clk 0:15:35]} 2. Nf3 {[%clk 0:15:44]}  Nc6 {[%clk 0:15:35]} 3. Bb5 {[%clk 0:15:44]}  a6 {[%clk 0:15:35]} 4. Ba4 {[%clk 0:15:44]}  Bc5 {[%clk 0:15:35]} 5. c3 {[%clk 0:15:44]}  Nge7 {[%clk 0:15:35]} 6. d4 {[%clk 0:15:44]}  exd4 {[%clk 0:15:35]} 7. cxd4 {[%clk 0:15:44]}  Bb4+ {[%clk 0:15:35]} 8. Bd2 {[%clk 0:15:44]}  Bxd2+ {[%clk 0:15:35]} 9. Nbxd2 {[%clk 0:15:44]}  d5 {[%clk 0:15:35]} 10. e5 {[%clk 0:15:44]}  O-O {[%clk 0:15:35]} 11. O-O {[%clk 0:15:44]}  Bg4 {[%clk 0:15:54]} 12. h3 {[%clk 0:15:27]}  Bh5 {[%clk 0:15:54]} 13. Bxc6 {[%clk 0:15:27]}  Nxc6 {[%clk 0:15:54]} 14. Qb3 {[%clk 0:15:27]}  Qd7 {[%clk 0:14:22]} 15. Rac1 {[%clk 0:14:48]}  Nd8 {[%clk 0:14:22]} 16. Rfe1 {[%clk 0:14:48]}  Ne6 {[%clk 0:14:22]} 17. Qe3 {[%clk 0:14:18]}  Bxf3 {[%clk 0:13:10]} 18. Nxf3 {[%clk 0:13:04]}  h6 {[%clk 0:13:10]} 19. Nh4 {[%clk 0:13:04]}  b6 {[%clk 0:09:58]} 20. Nf5 {[%clk 0:11:46]}  Kh7 {[%clk 0:07:17]} 21. Qd3 {[%clk 0:11:46]}  Kh8 {[%clk 0:05:18]} 22. Qd2 {[%clk 0:10:57]}  Kh7 {[%clk 0:05:18]} 23. Rc3 {[%clk 0:10:57]}  a5 {[%clk 0:05:18]} 24. Rg3 {[%clk 0:10:57]}  Rg8 {[%clk 0:05:18]} 25. Rc1 {[%clk 0:10:18]}  Rac8 {[%clk 0:04:22]} 26. Rcc3 {[%clk 0:10:18]}  g5 {[%clk 0:03:36]} 27. Ne3 {[%clk 0:09:29]}  h5 {[%clk 0:02:39]} 28. h4 {[%clk 0:08:29]}  gxh4 {[%clk 0:01:35]} 29. Nf5 {[%clk 0:08:29]}  Rg6 {[%clk 0:01:12]} 30. Rxg6 {[%clk 0:06:29]}  fxg6 {[%clk 0:01:12]} 31. Qh6+ {[%clk 0:06:29]} 1-0


[Site "http://www.Chess.com"]

[Event "FIDE World Rapid Chess Championship 2021"]
[White "Rapport, Richard"]
[Black "Van Foreest, Jorden"]
[WhiteFideId "738590"]
[BlackFideId "1039784"]
[WhiteElo "2750"]
[BlackElo "2563"]
[Result "1/2-1/2"]
[Round "04"]
[TimeControl "900+10"]
[Date "2021.12.26"]
[WhiteClock "0:08:00"]
[BlackClock "0:03:38"]

1. e4 {[%clk 0:15:14]}  e5 {[%clk 0:15:14]} 2. Nf3 {[%clk 0:15:14]}  Nc6 {[%clk 0:15:14]} 3. g3 {[%clk 0:15:22]}  Nf6 {[%clk 0:15:14]} 4. d3 {[%clk 0:15:22]}  d5 {[%clk 0:15:14]} 5. exd5 {[%clk 0:15:22]}  Nxd5 {[%clk 0:15:14]} 6. Bg2 {[%clk 0:15:22]}  Bd6 {[%clk 0:13:23]} 7. O-O {[%clk 0:15:52]}  O-O {[%clk 0:13:23]} 8. a3 {[%clk 0:15:59]}  a5 {[%clk 0:13:23]} 9. Nc3 {[%clk 0:15:59]}  Nxc3 {[%clk 0:13:23]} 10. bxc3 {[%clk 0:15:59]}  h6 {[%clk 0:13:23]} 11. Rb1 {[%clk 0:15:59]}  Rb8 {[%clk 0:13:23]} 12. Nd2 {[%clk 0:15:59]}  Be6 {[%clk 0:12:15]} 13. Re1 {[%clk 0:16:01]}  Qc8 {[%clk 0:12:15]} 14. Nc4 {[%clk 0:15:32]}  Bg4 {[%clk 0:11:20]} 15. Qd2 {[%clk 0:14:39]}  Re8 {[%clk 0:11:20]} 16. Nxd6 {[%clk 0:14:38]}  cxd6 {[%clk 0:09:26]} 17. Qe3 {[%clk 0:14:38]}  Bh3 {[%clk 0:09:26]} 18. Bh1 {[%clk 0:14:38]}  b5 {[%clk 0:09:09]} 19. Bd2 {[%clk 0:12:59]}  Qd7 {[%clk 0:09:09]} 20. Qe4 {[%clk 0:11:20]}  Ne7 {[%clk 0:07:41]} 21. c4 {[%clk 0:11:20]}  Bf5 {[%clk 0:07:46]} 22. Qe3 {[%clk 0:11:20]}  bxc4 {[%clk 0:07:46]} 23. Bxa5 {[%clk 0:11:20]}  Rxb1 {[%clk 0:07:46]} 24. Rxb1 {[%clk 0:11:20]}  Qa4 {[%clk 0:07:46]} 25. Qd2 {[%clk 0:10:11]}  cxd3 {[%clk 0:07:13]} 26. cxd3 {[%clk 0:10:11]}  Qxa3 {[%clk 0:07:13]} 27. Bb4 {[%clk 0:10:11]}  Qxd3 {[%clk 0:07:13]} 28. Qxd3 {[%clk 0:10:11]}  Bxd3 {[%clk 0:07:13]} 29. Rd1 {[%clk 0:10:11]}  e4 {[%clk 0:07:13]} 30. Bxd6 {[%clk 0:10:11]}  Nd5 {[%clk 0:07:13]} 31. Bg2 {[%clk 0:10:00]}  Nc3 {[%clk 0:06:57]} 32. Ra1 {[%clk 0:09:40]}  Ne2+ {[%clk 0:06:57]} 33. Kh1 {[%clk 0:09:40]}  Rc8 {[%clk 0:06:57]} 34. h4 {[%clk 0:09:40]}  Rc6 {[%clk 0:05:23]} 35. Bb8 {[%clk 0:09:30]}  Rc8 {[%clk 0:05:14]} 36. Ba7 {[%clk 0:09:30]}  Ra8 {[%clk 0:05:14]} 37. Kh2 {[%clk 0:09:30]}  Nc3 {[%clk 0:05:14]} 38. Bh3 {[%clk 0:09:30]}  Bc4 {[%clk 0:03:41]} 39. Ra5 {[%clk 0:09:14]}  Nb5 {[%clk 0:03:41]} 40. Bb6 {[%clk 0:09:14]}  Rxa5 {[%clk 0:03:41]} 41. Bxa5 {[%clk 0:09:14]}  Nd4 {[%clk 0:03:41]} 42. Bg4 {[%clk 0:09:14]}  Be6 {[%clk 0:03:38]} 43. Bb6 {[%clk 0:08:00]}  Bxg4 {[%clk 0:03:38]} 1/2-1/2


[Site "http://www.Chess.com"]

[Event "FIDE World Rapid Chess Championship 2021"]
[White "Alonso Rosell, Alvar"]
[Black "Wojtaszek, Radoslaw"]
[WhiteFideId "2270544"]
[BlackFideId "1118358"]
[WhiteElo "2571"]
[BlackElo "2743"]
[Result "1/2-1/2"]
[Round "04"]
[TimeControl "900+10"]
[Date "2021.12.26"]
[WhiteClock "0:08:27"]
[BlackClock "0:10:32"]

1. d4 {[%clk 0:15:35]}  Nf6 {[%clk 0:15:35]} 2. Bf4 {[%clk 0:15:35]}  d5 {[%clk 0:15:35]} 3. e3 {[%clk 0:15:35]}  Bg4 {[%clk 0:15:35]} 4. Be2 {[%clk 0:13:12]}  Bxe2 {[%clk 0:15:51]} 5. Qxe2 {[%clk 0:13:12]}  Nbd7 {[%clk 0:15:51]} 6. Nf3 {[%clk 0:13:12]}  e6 {[%clk 0:15:51]} 7. O-O {[%clk 0:13:12]}  c5 {[%clk 0:15:51]} 8. Ne5 {[%clk 0:13:12]}  Be7 {[%clk 0:15:51]} 9. dxc5 {[%clk 0:13:12]}  Nxc5 {[%clk 0:15:51]} 10. c4 {[%clk 0:12:19]}  O-O {[%clk 0:15:21]} 11. Nc3 {[%clk 0:12:19]}  Qb6 {[%clk 0:14:38]} 12. cxd5 {[%clk 0:11:17]}  Nxd5 {[%clk 0:14:38]} 13. Nxd5 {[%clk 0:11:17]}  exd5 {[%clk 0:14:38]} 14. Rfd1 {[%clk 0:11:17]}  Rad8 {[%clk 0:14:38]} 15. Nf3 {[%clk 0:09:57]}  Bf6 {[%clk 0:13:20]} 16. Be5 {[%clk 0:09:57]}  Bxe5 {[%clk 0:13:12]} 17. Nxe5 {[%clk 0:09:32]}  Ne6 {[%clk 0:13:12]} 18. Nf3 {[%clk 0:09:32]}  d4 {[%clk 0:13:12]} 19. Nxd4 {[%clk 0:08:27]}  Nxd4 {[%clk 0:10:32]} 20. Rxd4 {[%clk 0:08:27]}  Rxd4 {[%clk 0:10:32]} 21. exd4 {[%clk 0:08:27]}  Qxd4 {[%clk 0:10:32]} 22. Rd1 {[%clk 0:08:27]} 1/2-1/2


[Site "http://www.Chess.com"]